Cogmind - Beta 13 @@@ ROGUE MODE // 2024.04.05 @ 00:39:13 Player: Toa of Guts Result: Destroyed by S-27 Virus with Autogun Performance ------------- Evolutions (3) 1500 Regions Visited (7) 1400 Robots Destroyed (67) 335 Value Destroyed (2225) 2225 Prototype IDs (4) 80 Alien Tech Used (0) 0 Bonus (31) 31 TOTAL SCORE: 5571 Bonus ------- High Alert Combat Kills 31 Cogmind --------- Core Integrity 0/700 Matter 10/300 Energy 100/100 System Corruption 24% Temperature Cool (0) Movement Core (350) Ox6 Location -7/Factory Parts ------- > --- POWER (1) -------- (None) > --- PROPULSION (4) --- (None) > --- UTILITY (5) ------ Large Storage Unit Improved Signal Interpreter Terrain Scan Processor Hacking Suite > --- WEAPON (3) ------- (None) > --- INVENTORY (15) --- Heavy Deuterium Engine Medium Treads Carbon-fiber Leg Carbon-fiber Leg Carbon-fiber Leg Carbon-fiber Leg Improved Titanium Leg Improved Titanium Leg Cesium-ion Thruster Trap Scanner Improved Terrain Scanner Heavy Laser Enhanced Autogun Enhanced Autogun Great Maul Peak State ------------ > --- POWER ------------ Improved Deuterium Engine > --- PROPULSION ------- Light Armored Exoskeleton Light Armored Exoskeleton > --- UTILITY ---------- Large Storage Unit Trap Scanner Improved Terrain Scanner Terrain Scan Processor Hacking Suite > --- WEAPON ----------- Enhanced Autogun Flak Gun Flak Gun > --- INVENTORY -------- Nuclear Core Titanium Leg Improved Titanium Leg Light Armored Exoskeleton Armored Huge Wheel Improved Signal Interpreter Plasma Cannon Enhanced Autogun Enhanced Autogun Enhanced Autogun EMP Blaster Mini Grenade Launcher Great Maul [Rating: 49] Favorites ----------- Power Improved Ion Engine Engine Improved Ion Engine Power Core Nuclear Core Propulsion Light Armored Exoskeleton Treads Light Treads Leg Light Armored Exoskeleton Wheel Wheel Utility Large Storage Unit Device Improved Terrain Scanner Storage Large Storage Unit Processor Terrain Scan Processor Hackware Hacking Suite Protection Hardened Light Armor Plating Weapon Flak Gun Energy Gun Spread Laser Energy Cannon Plasma Cannon Ballistic Gun Flak Gun Launcher EMP Blaster Special Weapon Plasma Cutter Impact Weapon Great Maul Build | -11 -10 -9 -9 -8 -7 -7 -7 ------- Run | Yrd Mat Mat Min Mat Fac Was Fac Slots Evolved 6 | . . 2 . 2 2 . . Power . | . . . . . . . . Propulsion 2 | . . 1 . 1 . . . Utility 3 | . . 1 . 1 1 . . Weapon 1 | . . . . . 1 . . Parts Attached 90 | 7 7 22 . 9 41 4 . Power 10 | 1 1 2 . . 6 . . Engine 6 | 1 1 2 . . 2 . . Core 4 | . . . . . 4 . . Reactor . | . . . . . . . . Propulsion 24 | 2 3 7 . 2 6 4 . Treads 3 | . . 2 . 1 . . . Leg 14 | 2 . 3 . 1 6 2 . Wheel 7 | . 3 2 . . . 2 . Hover . | . . . . . . . . Flight . | . . . . . . . . Utility 28 | 1 2 3 . 5 17 . . Device 19 | . 1 3 . 2 13 . . Storage 2 | 1 1 . . . . . . Processor 2 | . . . . 1 1 . . Hackware 1 | . . . . 1 . . . Protection 4 | . . . . 1 3 . . Artifact . | . . . . . . . . Weapon 28 | 3 1 10 . 2 12 . . Energy Gun 8 | 2 . 6 . . . . . Energy Cannon 1 | . . . . . 1 . . Ballistic Gun 13 | 1 1 1 . 2 8 . . Ballistic Cannon . | . . . . . . . . Launcher 1 | . . . . . 1 . . Special Weapon 1 | . . 1 . . . . . Impact Weapon 4 | . . 2 . . 2 . . Slashing Weapon . | . . . . . . . . Piercing Weapon . | . . . . . . . . Special Melee Weapon . | . . . . . . . . Unidentified Prototypes 1 | . . 1 . . . . . Parts Lost 22 | . 3 . . 1 12 4 2 Power 6 | . 1 . . . 4 1 . Propulsion 5 | . 1 . . . 1 1 2 Utility 3 | . . . . 1 2 . . Weapon 8 | . 1 . . . 5 2 . Highest Loss Streak 4 | . 2 . . 1 4 3 2 To Critical Strikes . | . . . . . . . . Average Slot Usage (%) 89 | . 77 98 100 96 89 63 46 Engine 6 | . 8 11 11 9 3 4 . Core 1 | . . . . . 3 . . Treads 2 | . . 9 . 2 . . . Leg 17 | . 5 3 33 33 20 12 7 Wheel 4 | . 14 19 . . . 2 7 Device 10 | . 6 20 22 11 7 . . Storage 8 | . 14 11 11 9 7 7 7 Processor 5 | . . . . 6 7 15 15 Hackware 5 | . . . . 6 7 7 7 Protection 3 | . . . . . 5 . . Energy Gun 7 | . 22 20 22 15 . . . Ballistic Gun 13 | . 5 1 . 2 21 6 . Naked Turns . | . . . . . . . . Heaviest Build 50 | 14 30 36 35 36 50 45 20 Greatest Support 60 | 20 26 36 36 53 60 60 28 Greatest Overweight (x) 2 | 2 2 1 . . 1 . . Average Overweight (x) . | . 1 . . . . . . Largest Inventory Capacity 15 | 8 15 15 15 15 15 15 15 Average Capacity 14 | 6 13 15 15 15 15 15 15 Most Carried 15 | 6 10 15 15 15 15 11 15 Average Carried 13 | 3 8 14 15 13 14 8 14 Final Capacity 15 | 8 15 15 15 15 15 15 15 Final Carried 15 | 6 8 15 15 15 9 7 15 Class Distribution -------------------- 31% | Skirmisher 30% | Mutant 20% | Scavenger-Mutant 13% | Scavenger-Skirmisher Dominant Class ---------------- Mutant | -10/Materials Mutant | -9/Materials Scavenger-Mutant | -9/Mines Scavenger-Mutant | -8/Materials Skirmisher | -7/Factory Mutant | -7/Waste Mutant | -7/Factory Resources | -11 -10 -9 -9 -8 -7 -7 -7 ----------- Run | Yrd Mat Mat Min Mat Fac Was Fac Matter Collected 1979 | 214 124 235 . 139 1267 . . Remotely . | . . . . . . . . Salvage Created 2269 | . 439 482 . 117 1231 . . Parts 122 | . 29 30 . 6 57 . . Haulers Intercepted 6 | . 1 3 . . 2 . . Recyclers Shooed . | . . . . . . . . Parts Field Recycled . | . . . . . . . . Retrieved Matter . | . . . . . . . . Parts Self-Destructed . | . . . . . . . . Prevented . | . . . . . . . . Kills | -11 -10 -9 -9 -8 -7 -7 -7 ------- Run | Yrd Mat Mat Min Mat Fac Was Fac Combat Hostiles Destroyed 47 | . 6 11 . 3 27 . . Guns 43 | . 5 10 . 3 25 . . Cannons 2 | . . . . . 2 . . AOE 2 | . 1 1 . . . . . Classes Destroyed 11 | . 5 3 . . 3 . . Worker 8 | . 2 1 . . 5 . . Tunneler 1 | . . 1 . . . . . Hauler 6 | . 1 3 . . 2 . . Recycler 2 | . . . . . 2 . . Operator 2 | . 2 . . . . . . Watcher 1 | . 1 . . . . . . Swarmer 4 | . . . . . 4 . . Grunt 24 | . 6 5 . 2 11 . . Duelist 4 | . . 2 . . 2 . . Sentry 10 | . . 4 . 1 5 . . Programmer 5 | . . . . . 5 . . Best Kill Streak 6 | . 6 4 . 2 5 . . Combat Bots Only 3 | . 2 3 . 2 3 . . Max Kills in Single Turn 3 | . 1 2 . 1 3 . . Gunslinging 1 | . . 1 . . . . . Exploded 1 | . 1 1 . . . . . Melee . | . . . . . . . . Uniques/NPCs Destroyed . | . . . . . . . . Combat | -11 -10 -9 -9 -8 -7 -7 -7 -------- Run | Yrd Mat Mat Min Mat Fac Was Fac Hostile Shots Fired 669 | . 35 38 . 15 453 10 118 Missed 228 | . 9 10 . 3 165 4 37 Damage Taken 6236 | . 339 491 . 243 3819 237 1107 Core 887 | . 91 21 . 73 446 6 250 Absorbed by Shields . | . . . . . . . . Core Remaining (%) 85 | 100 63 . 94 86 . . . Volleys Fired 151 | . 30 34 . 8 79 . . Largest 3 | . 2 2 . 2 3 . . Hottest 130 | . 80 130 . 130 105 . . Shots Fired 361 | . 59 68 . 16 218 . . Gun 350 | . 59 68 . 16 207 . . Cannon 8 | . . . . . 8 . . Launcher 3 | . . . . . 3 . . Special . | . . . . . . . . Kinetic 231 | . 11 5 . 8 207 . . Thermal 74 | . . 58 . 8 8 . . Explosive . | . . . . . . . . Electromagnetic 56 | . 48 5 . . 3 . . Robot Hit Streak 15 | . 9 15 . 7 11 . . Robot Miss Streak 10 | . 3 6 . 3 10 . . Penetration Max . | . . . . . . . . Secondary Targets 3 | . 1 1 . . 1 . . Max Gunslinging Chain 1 | . 1 1 . . 1 . . Shots Hit Robots 285 | . 41 60 . 14 170 . . Core Hits 295 | . 18 75 . 21 181 . . Critical Kills . | . . . . . . . . Critical Parts Destroyed . | . . . . . . . . Critical Strikes 2 | . 2 . . . . . . Corrupt 2 | . 2 . . . . . . Melee Attacks 8 | . . 3 . . 5 . . Impact 8 | . . 3 . . 5 . . Slashing . | . . . . . . . . Piercing . | . . . . . . . . Sneak Attacks . | . . . . . . . . Combat Hostiles . | . . . . . . . . Follow-up Attacks . | . . . . . . . . Damage Inflicted 5342 | . 717 1069 . 250 3306 . . Guns 4838 | . 535 942 . 250 3111 . . Cannons 103 | . . . . . 103 . . Explosions 401 | . 182 127 . . 92 . . Melee . | . . . . . . . . Ramming . | . . . . . . . . Kinetic 3361 | . 54 60 . 136 3111 . . Thermal 1253 | . 182 829 . 114 128 . . Explosive 127 | . . 127 . . . . . Electromagnetic 601 | . 481 53 . . 67 . . Impact . | . . . . . . . . Slashing . | . . . . . . . . Piercing . | . . . . . . . . Highest Corruption 24 | . . . . . 19 24 24 Average Corruption 6 | . . . . . 5 23 24 Corruption Purged . | . . . . . . . . Corruption Blocked . | . . . . . . . . Effects 123 | . . . . . 104 5 14 Message Errors 25 | . . . . . 19 2 4 Matter Fused 31 | . . . . . 30 1 . Heat Flow Errors 9 | . . . . . 8 . 1 Energy Discharges 15 | . . . . . 12 . 3 Parts Rejected 2 | . . . . . 1 1 . Data Loss (minor) 19 | . . . . . 17 . 2 Data Loss (major) 3 | . . . . . 3 . . Misfires 5 | . . . . . 5 . . Alerts 6 | . . . . . 5 . 1 Misdirections 4 | . . . . . . 1 3 Weapon Failures 4 | . . . . . 4 . . Overload Shots . | . . . . . . . . Overflow Damage 9 | . 9 . . . . . . Projectiles . | . . . . . . . . Explosions 9 | . 9 . . . . . . Melee . | . . . . . . . . Knockbacks . | . . . . . . . . Impact . | . . . . . . . . Kinetic . | . . . . . . . . Secondary . | . . . . . . . . Self-Inflicted Damage 118 | . 54 51 . . 13 . . Shots 5 | . 2 1 . . 2 . . Rammed . | . . . . . . . . Targets Rammed . | . . . . . . . . Kicked . | . . . . . . . . Crushed . | . . . . . . . . Highest Temperature 267 | . 93 201 . 57 267 . 255 Average Temperature 53 | . 34 54 . 24 57 . 136 Received Heat Transfer 1110 | . 159 141 . 72 714 . 24 Siege Activations . | . . . . . . . . Robots Corrupted . | . . . . . . . . Combat Hostiles . | . . . . . . . . Parts Fried 1 | . 1 . . . . . . Impact Corruptions . | . . . . . . . . Robots Melted . | . . . . . . . . Combat Hostiles . | . . . . . . . . Parts Melted 1 | . . 1 . . . . . Heat Transferred 1520 | . 100 1030 . 140 250 . . Parts Sabotaged . | . . . . . . . . Parts Stolen . | . . . . . . . . Parts Stripped . | . . . . . . . . Power Chain Reactions 4 | . 3 . . . 1 . . Alert | -11 -10 -9 -9 -8 -7 -7 -7 ------- Run | Yrd Mat Mat Min Mat Fac Was Fac Peak Influence 463 | . 218 225 69 61 463 155 155 Initial 155 | . . 9 69 26 18 155 80 Average 129 | . 84 119 69 25 163 137 99 Maximum Alert Level 2 | . 1 1 . . 2 . . Low Security (%) 73 | 100 89 90 100 100 57 100 100 Level 1 22 | . 10 9 . . 34 . . Level 2 4 | . . . . . 7 . . Level 3 . | . . . . . . . . Level 4 . | . . . . . . . . Level 5 . | . . . . . . . . High Security . | . . . . . . . . Max Security . | . . . . . . . . Squads Dispatched 15 | . 2 1 . . 12 . . Investigation 3 | . . 1 . . 2 . . Extermination 5 | . . . . . 5 . . Reinforcement 3 | . 2 . . . 1 . . Assault . | . . . . . . . . Garrison 4 | . . . . . 4 . . Intercept . | . . . . . . . . Searches Triggered . | . . . . . . . . Construction Impeded . | . . . . . . . . Haulers Reinforced . | . . . . . . . . Active Scanning Responses . | . . . . . . . . Cargo Convoy Interrupts . | . . . . . . . . Stealth | -11 -10 -9 -9 -8 -7 -7 -7 --------- Run | Yrd Mat Mat Min Mat Fac Was Fac Distress Signals 2 | . . . . . 1 . 1 Communications Jammed . | . . . . . . . . Distress Signals . | . . . . . . . . Times Spotted 87 | . 10 15 . 4 44 6 8 Peak Tracking Total 9 | . 3 6 . 2 9 6 5 Tactical Retreats 7 | . . 2 . . 3 . 2 Traps | -11 -10 -9 -9 -8 -7 -7 -7 ------- Run | Yrd Mat Mat Min Mat Fac Was Fac Traps Triggered 4 | . . . . . 4 . . Indirectly . | . . . . . . . . Trap Hack Attempts . | . . . . . . . . Triggered . | . . . . . . . . Disarmed . | . . . . . . . . Reprogrammed . | . . . . . . . . Reused . | . . . . . . . . Traps Extracted . | . . . . . . . . Installed . | . . . . . . . . Triggered . | . . . . . . . . Machines | -11 -10 -9 -9 -8 -7 -7 -7 ---------- Run | Yrd Mat Mat Min Mat Fac Was Fac Machines Disabled 3 | . . 3 . . . . . Max in Single Turn 2 | . . 2 . . . . . Machines Repaired . | . . . . . . . . Machines Dismantled 1 | . . 1 . . . . . Machines Sabotaged . | . . . . . . . . Overloaded Fab Kills . | . . . . . . . . Hacking | -11 -10 -9 -9 -8 -7 -7 -7 --------- Run | Yrd Mat Mat Min Mat Fac Was Fac Machines Accessed 9 | . 1 2 . 1 5 . . Terminals 6 | . 1 1 . 1 3 . . Fabricators 1 | . . . . . 1 . . Repair Stations . | . . . . . . . . Recycling Units 1 | . . 1 . . . . . Scanalyzers . | . . . . . . . . Garrison Access 1 | . . . . . 1 . . Total Hacks 19 | . 5 3 . 3 8 . . Successful 10 | . 1 3 . 1 5 . . Failed 9 | . 4 . . 2 3 . . Catastrophic 1 | . . . . . 1 . . Database Lockouts . | . . . . . . . . Manual 6 | . 2 2 . . 2 . . Terminals 14 | . 5 2 . 3 4 . . Fabricators 2 | . . . . . 2 . . Repair Stations . | . . . . . . . . Recycling Units 1 | . . 1 . . . . . Scanalyzers . | . . . . . . . . Garrison Access 2 | . . . . . 2 . . Terminal Hacks 6 | . 1 1 . 1 3 . . Record 1 | . . . . . 1 . . Prototype ID Bank 2 | . . . . 1 1 . . Open DSF 1 | . . . . . 1 . . Alert Level 1 | . . 1 . . . . . Locate Traps 1 | . 1 . . . . . . Fabricator Hacks 1 | . . . . . 1 . . Network Status 1 | . . . . . 1 . . Repair Station Hacks . | . . . . . . . . Recycling Unit Hacks . | . . . . . . . . Scanalyzer . | . . . . . . . . Garrison Access Hacks . | . . . . . . . . Unauthorized Hacks 3 | . . 2 . . 1 . . Terminals 1 | . . 1 . . . . . Track 1 | . . 1 . . . . . Fabricators 1 | . . . . . 1 . . Report 1 | . . . . . 1 . . Repair Stations . | . . . . . . . . Recycling Units 1 | . . 1 . . . . . Tunnel 1 | . . 1 . . . . . Scanalyzers . | . . . . . . . . Garrison Access . | . . . . . . . . Data Cores Recovered 1 | . 1 . . . . . . Used 1 | . 1 . . . . . . Hacking Detections 6 | . 1 1 . . 4 . . Full Trace Events 1 | . . . . . 1 . . Feedback Events . | . . . . . . . . Feedback Blocked . | . . . . . . . . Robot Schematics Acquired . | . . . . . . . . Robots Built . | . . . . . . . . Authchips . | . . . . . . . . Time . | . . . . . . . . Total Robot Build Rating . | . . . . . . . . Part Schematics Acquired . | . . . . . . . . Parts Built . | . . . . . . . . Authchips . | . . . . . . . . Time . | . . . . . . . . Total Part Build Rating . | . . . . . . . . Parts Repaired . | . . . . . . . . Time . | . . . . . . . . Parts Recycled . | . . . . . . . . Recycled Matter . | . . . . . . . . Retrieved Matter . | . . . . . . . . Retrieved Components . | . . . . . . . . Parts Scanalyzed . | . . . . . . . . Part Schematics Acquired . | . . . . . . . . Parts Damaged . | . . . . . . . . Bothacking | -11 -10 -9 -9 -8 -7 -7 -7 ------------ Run | Yrd Mat Mat Min Mat Fac Was Fac Used RIF Installer . | . . . . . . . . Robots Hacked . | . . . . . . . . Non-combat . | . . . . . . . . Combat . | . . . . . . . . Robot Hacks Applied . | . . . . . . . . Relay Couplers Released 4 | . . . . . 4 . . Programmers 4 | . . . . . 4 . . Fabnet Peak Effective % . | . . . . . . . . Robots Rewired . | . . . . . . . . Allies Hacked . | . . . . . . . . Hacks Repelled . | . . . . . . . . Allies | -11 -10 -9 -9 -8 -7 -7 -7 -------- Run | Yrd Mat Mat Min Mat Fac Was Fac Total Allies . | . . . . . . . . Largest Group . | . . . . . . . . Highest-Rated Group . | . . . . . . . . Highest-Rated Ally . | . . . . . . . . Total Orders . | . . . . . . . . Ally Attacks . | . . . . . . . . Total Damage . | . . . . . . . . Kills . | . . . . . . . . Allies Corrupted . | . . . . . . . . Allies Melted . | . . . . . . . . Intel | -11 -10 -9 -9 -8 -7 -7 -7 ------- Run | Yrd Mat Mat Min Mat Fac Was Fac Robot Analysis Total . | . . . . . . . . Derelict Logs Recovered . | . . . . . . . . Drone Launches . | . . . . . . . . Drone Recoveries . | . . . . . . . . Exploration | -11 -10 -9 -9 -8 -7 -7 -7 ------------- Run | Yrd Mat Mat Min Mat Fac Was Fac Turns Passed 6266 | 58 439 1166 58 714 3544 85 202 Spaces Moved 3044 | 35 233 804 41 372 1319 65 175 Core 11 | 11 . . . . . . . Treads 2 | . . 2 . . . . . Legs 1909 | 24 53 62 41 372 1319 38 . Wheels 1122 | . 180 740 . . . 27 175 Hover . | . . . . . . . . Flight . | . . . . . . . . Fastest Speed 50 | 50 95 95 120 120 122 100 100 Average Speed 119 | 116 111 97 120 121 136 123 100 Slowest Speed 250 | 150 120 240 120 122 250 140 100 Overloaded Moves . | . . . . . . . . Propulsion Burnouts . | . . . . . . . . Robots Hopped . | . . . . . . . . Cave-ins Triggered . | . . . . . . . . Exploration Rate (%) 32 | 3 45 55 14 28 41 64 7 Regions Visited 7 Branch Regions 1 Pre-discovered Areas 1 | . . 1 . . . . . Known Exits Taken . | . . . . . . . . Unknown Exits Taken 5 | 1 1 1 1 1 . . . Scrap Searched . | . . . . . . . . Spaces Dug 8 | . . 3 . . 5 . . Terrain Destroyed 31 | . 8 18 . . 5 . . Melee 8 | . . 3 . . 5 . . Projectile . | . . . . . . . . AOE 23 | . 8 15 . . . . . Terrain Rammed . | . . . . . . . . Walls Destroyed . | . . . . . . . . Machines Disabled . | . . . . . . . . Actions | -11 -10 -9 -9 -8 -7 -7 -7 --------- Run | Yrd Mat Mat Min Mat Fac Was Fac Total 5358 | 49 353 1109 50 620 2904 70 203 Wait 1933 | . 75 208 10 211 1411 . 18 Move 3038 | 34 232 803 40 371 1319 64 175 Hop . | . . . . . . . . Pick Up 73 | 8 6 18 . 10 22 . 9 Fast Attach 19 | 4 2 2 . 3 7 1 . Attach 27 | 2 3 3 . 3 13 3 . Detach 7 | . 1 1 . 1 2 2 . Swap 44 | 1 2 17 . 3 21 . . Drop 55 | . 2 17 . 10 25 . 1 Fire 151 | . 30 34 . 8 79 . . Melee 8 | . . 3 . . 5 . . Ram . | . . . . . . . . Kick . | . . . . . . . . Crush . | . . . . . . . . Escape Stasis . | . . . . . . . . Rewire . | . . . . . . . . Trap . | . . . . . . . . Miscellaneous 3 | . . 3 . . . . . Route ------- -11/Scrapyard -10/Materials -9/Materials (discovered 2 exits: *Mat / [*Min]) -9/Mines (discovered 2 exits: *Mat / [*Zio]) -8/Materials -7/Factory -7/Waste -7/Factory History --------- Turn | Location | Event 11 | -11/Scrapyard | Discovered new exit (range 15) 59 | -11/Scrapyard | Entered Materials 307 | -10/Materials | Build established: Mutant 481 | -10/Materials | Discovered new exit (range 7) 498 | -10/Materials | Entered another Materials area 498 | -9/Materials | Evolved 2 slots: Propulsion x1, Utility x1 1203 | -9/Materials | Discovered new exit (range 15) 1295 | -9/Materials | Discovered new exit (range 10) 1497 | -9/Materials | Build established: Scavenger-Mutant 1664 | -9/Materials | Entered Mines 1665 | -9/Mines | A Derelict revealed a hidden shortcut to a safe place 1700 | -9/Mines | Discovered new exit (range 11) 1719 | -9/Mines | Assembled infested the area 1722 | -9/Mines | Entered Materials 1722 | -8/Materials | Evolved 2 slots: Propulsion x1, Utility x1 2433 | -8/Materials | Discovered new exit (range 5) 2436 | -8/Materials | Entered Factory 2436 | -7/Factory | Evolved 2 slots: Utility x1, Weapon x1 2876 | -7/Factory | Build established: Scavenger-Skirmisher 3684 | -7/Factory | Build established: Skirmisher 5024 | -7/Factory | Lost 3 parts (1u2w) 5350 | -7/Factory | Garrison activated, responded to threat 5355 | -7/Factory | System corruption reached 10% 5452 | -7/Factory | Garrison activated, responded to threat 5601 | -7/Factory | Discovered new exit (range 5) 5627 | -7/Factory | Identified exit to Storage 5916 | -7/Factory | Core integrity fell below 50% 5980 | -7/Factory | Sucked down chute 5980 | -7/Factory | Entered Waste 5986 | -7/Waste | Lost 4 parts (1p1n1u1w) 5995 | -7/Waste | EMP discharged 5995 | -7/Waste | Spotted C-40 Crusher 6000 | -7/Waste | Crushed by Compactor (1 part destroyed) 6002 | -7/Waste | Spotted C-40 Crusher 6006 | -7/Waste | Spotted C-40 Crusher 6010 | -7/Waste | Spotted C-40 Crusher 6021 | -7/Waste | Spotted C-40 Crusher 6032 | -7/Waste | Spotted C-40 Crusher 6033 | -7/Waste | Crushed by Compactor (0 parts destroyed, 1 dropped) 6036 | -7/Waste | Crushed by Compactor (1 part destroyed) 6043 | -7/Waste | Crushed by Compactor (1 part destroyed) 6050 | -7/Waste | Discovered new exit (range 16) 6064 | -7/Waste | Identified exit to Factory 6065 | -7/Waste | Entered Factory 6074 | -7/Factory | Lost 3 parts (1p1n1w) 6194 | -7/Factory | Core integrity fell below 20% 6267 | -7/Factory | Destroyed by S-27 Virus with Autogun Last Messages --------------- 06103_ Acquired Unknown Flight Unit. 06107_ System corrupted: Component data lost. 06128_ PLSBYGCFO:DPFR8PO|/IJ/7BW 06209_ System corrupted: Energy discharge (-25). 06225_ W-25 Informer sends out distress signal. 06227_ System corrupted: IFF burst signal emitted. 06242_ K-01 Serf cleans the Nuclear Reactor. 06244_ 7SUM=:5 W|JTNF,Z7A55%JSVO1>L7HDAOCX 06247_ K-01 Serf cleans the Nuclear Reactor. 06260_ Arm. Huge Wheel destroyed. 06262_ K-01 Serf cleans the Nuclear Reactor. 06265_ Lgt. Armored Exoskeleton destroyed. 06267_ DIZ WTKUMTF1 ZN23STW